[Event "45th FIDE Womens Olympiad 2024"]
[Site "Budapest"]
[Date "2024.09.15"]
[Round "5.41"]
[White "Daulyte-Cornette, Deimante"]
[Black "Alinasab, Mobina"]
[Result "1/2-1/2"]
[ECO "B41"]
[WhiteElo "2369"]
[BlackElo "2336"]
[Annotator "TA"]
[PlyCount "81"]
[EventDate "2024.09.05"]
[EventType "team-tourn"]
[EventCountry "HUN"]
[SourceTitle "playchess.com"]
[Source "ChessBase"]
[SourceQuality "1"]
[WhiteTeam "France"]
[BlackTeam "Iran"]
[WhiteTeamCountry "FRA"]
[BlackTeamCountry "IRI"]
[TimeControl "40/5400+30:1800+30"]

{[%evp 12,81,12,0,0,0,0,0,0,0,0,0,0,0,2,-39,0,0,0,-25,-32,-47,-35,-50,-49,-41,-34,-48,-57,-140,-125,-130,-35,-84,-84,-84,-69,-126,-126,-126,-126,-145,-126,-203,-204,-204,-204,-204,-204,-204,-204,-204,-204,-204,0,-204,-203,-203,-203,-203,0,-203,-197,-197,-197,-197,-197,-197,-197,-197,0,-197]} 1. e4 c5 2. Nf3 e6 3. d4 cxd4 4. Nxd4 a6 5. Be2 Nf6 6. Nc3 Bb4 7. e5 Ne4 8. O-O Nxc3 9. bxc3 Bxc3 10. Ba3 Qa5 11. Bd6 {[%cal Oe2h5] aiming for Bh5!} Nc6 12. Nxc6 dxc6 {[#]} 13. f4 Bxa1 14. Qxa1 Qd2 15. Rf2 Qe3 16. Bf3 {A strong pair of Bishops.} Bd7 {[%cal Oh7h5]} (16... Qxf4 $2 17. Bxc6+ bxc6 18. Rxf4 $18) 17. c4 $1 b5 (17... Qxf4 $6 18. Bxc6 $14) 18. c5 a5 {[%cal Oh7h5]} 19. a4 {Strongly threatening axb5.} b4 {[%cal Oa8a7]} (19... Qxf4 $2 20. axb5 (20. Bxc6 Qxf2+ 21. Kxf2 Bxc6 $18) 20... Qb4 21. bxc6 $18) 20. g3 (20. f5 $1 $15) 20... h5 21. h4 Rh6 (21... Qd3 $17 22. f5 Qc4 (22... exf5 $2 23. e6 $18) (22... Qxf5 23. Kh2 $11)) 22. Kg2 (22. Qf1 $1 $15 {should be considered.}) 22... Rg6 $17 23. Qb1 Kd8 (23... Qxf4 $2 {perishes.} 24. Qxg6 fxg6 25. gxf4 $18) 24. Qe4 (24. Re2 $15 Qxf4 25. Qxg6 Qxf3+ 26. Kxf3 fxg6 27. Rf2) 24... Qxe4 25. Bxe4 {[#]} Ra7 $1 {[%cal Oa7b7]} 26. Rb2 {[#]} (26. Bxg6 fxg6) 26... Ke8 $1 27. Rb3 {[#]} (27. Bb8 $17 {keeps fighting.} Rb7 28. Bd6) (27. Bxg6 fxg6) 27... Rh6 $1 $19 ({Don't do} 27... Rg4 28. Bf3 $17) 28. Kf2 f6 29. Ke3 Kf7 30. Kd4 Rh8 31. Kc4 Rc8 32. Re3 Rh8 $2 (32... Rca8 $19 {...f5 would now be deadly.} 33. Bf3 Rh8) 33. Kb3 $2 (33. Rb3 $1 $11 {and White stays safe.}) 33... f5 34. Bf3 Rh6 35. Rd3 Rh8 36. Re3 $1 g6 37. Rd3 Rc8 38. Rd4 Be8 39. Be2 Rd8 40. Bf3 Rc8 41. Be2 $1 {Weighted Error Value: White=0.20 (precise) /Black=0.27 (precise) .  Loses game:     	White=1     	---        Missed win:     	---       	Black=1      Mistake:       	White=4     	Black=1      Inaccurate:     	White=1     	Black=1      OK:         	White=13    	Black=9      Best:        	White=2     	Black=1      Strong:       	White=3     	---} 1/2-1/2

[Event "45th FIDE Womens Olympiad 2024"]
[Site "Budapest"]
[Date "2024.09.15"]
[Round "5.41"]
[White "Asha, Huang Limboo"]
[Black "Saiful Azmi, Nur Farzana"]
[Result "1-0"]
[ECO "B18"]
[WhiteElo "1420"]
[BlackElo "1533"]
[PlyCount "83"]
[EventDate "2024.09.05"]
[EventType "team-tourn"]
[EventCountry "HUN"]
[WhiteTeam "Bhutan"]
[BlackTeam "Brunei Darussalam"]
[WhiteTeamCountry "BTN"]
[TimeControl "40/5400+30:1800+30"]

1. e4 c6 2. Nc3 d5 3. d4 dxe4 4. Nxe4 Bf5 5. f3 h5 6. Bc4 e6 7. a3 Nd7 8. Be3 Ngf6 9. Nxf6+ Nxf6 10. Nh3 Qd7 11. Bb3 O-O-O 12. Qd2 b6 13. O-O-O Be7 14. Qe2 Kb7 15. Ng5 Bg6 16. Bf4 Nd5 17. Bxd5 cxd5 18. c3 Rc8 19. Qe3 Qa4 20. Rd2 Bxa3 21. Rg1 Qb4 22. Kd1 Qb3+ 23. Ke2 Bxb2 24. c4 Qxc4+ 25. Kf2 Bc3 26. Rdd1 Bc2 27. Nxf7 Bxd1 28. Nd6+ Ka6 29. Nxc4 Rxc4 30. Rxd1 Kb7 31. Qxe6 Rd8 32. Qe7+ Kc8 33. Be5 a5 34. Rb1 Rd7 35. Qe8+ Rd8 36. Qe6+ Rd7 37. Rxb6 Bxd4+ 38. Bxd4 Rxd4 39. Rc6+ Kd8 40. Qg8+ Ke7 41. Qxg7+ Kd8 42. Qxd4 1-0

[Event "45th FIDE Womens Olympiad 2024"]
[Site "Budapest"]
[Date "2024.09.15"]
[Round "5.42"]
[White "Azali, Tannaz"]
[Black "Milliet, Sophie"]
[Result "0-1"]
[ECO "E51"]
[WhiteElo "2125"]
[BlackElo "2348"]
[Annotator "TA"]
[PlyCount "94"]
[EventDate "2024.09.05"]
[EventType "team-tourn"]
[EventCountry "HUN"]
[SourceTitle "playchess.com"]
[Source "ChessBase"]
[SourceQuality "1"]
[WhiteTeam "Iran"]
[BlackTeam "France"]
[WhiteTeamCountry "IRI"]
[BlackTeamCountry "FRA"]
[TimeControl "40/5400+30:1800+30"]

{[%evp 10,94,13,0,21,17,6,-3,18,-10,0,-2,-9,0,2,-30,-30,-56,-39,-54,-55,-54,-46,-188,-196,-190,-193,-196,-195,-217,-204,-320,-235,-305,-266,-376,-341,-339,-225,-580,-580,-624,-640,-632,-631,-592,-495,-535,-264,-283,-266,-264,-251,-263,-254,-286,-250,-306,-258,-309,-256,-295,-115,-303,-164,-267,-262,-556,-592,-584,-577,-607,-568,-621,-411,-585,-600,-592,-594,-670,-569,-603,-603,-1729,-1709,-5257,-4478]} 1. d4 Nf6 2. c4 e6 3. Nc3 Bb4 4. Bd2 O-O 5. Nf3 d5 6. e3 Re8 7. Rc1 a6 8. Qc2 Nbd7 {The position is equal.} 9. c5 e5 {Hoping for ...exd4.} 10. a3 Bxc3 11. Bxc3 e4 12. Ng1 Nf8 13. h4 Ng4 14. g3 Qf6 15. Bg2 Bd7 {[%cal Od7a4]} 16. a4 {[#] White is weak on the light squares. Black converts the advantage convincingly.} (16. Nh3 $15) 16... Bxa4 $1 $19 {[%mdl 512]} 17. Qd2 Bb5 18. Nh3 Ne6 19. Qd1 h5 20. Qb3 (20. Nf4 $142) 20... Rad8 21. Rc2 Qg6 22. Kd1 (22. Bd2 $142) 22... b6 23. cxb6 c5 ({But not} 23... cxb6 24. Kc1) 24. Rd2 (24. Nf4 {is a better chance.} Nxf4 25. gxf4 Qxb6 26. Qa3) 24... cxd4 25. Bxd4 Nxd4 26. Rxd4 Qxb6 {[%cal Ob5e2] ...Be2+! would now be deadly.} 27. Kd2 Rc8 28. Ra1 {Prevents Qa5+} Qc6 (28... Qf6 $142 29. Nf4 Bc4 (29... Nxf2 $2 30. Nxh5 Qg6 31. Qxd5 $19)) 29. Ke1 Ne5 30. Nf4 Bc4 31. Qa4 Qb7 32. Qa3 Rb8 33. Rd2 Qc8 34. Rc1 {[%cal Od2d5]} Qf5 35. Qc3 Rec8 $2 (35... Rb3 $19 36. Qd4 Rb5) 36. Qd4 (36. Bh3 $17 Ng4 37. Rdc2) 36... Nc6 (36... a5 $142 {Strongly threatening ...Bb3.} 37. Rdd1 Kh7) 37. Qc3 (37. Qc5 {is the only way for White.} Ne5 38. Qd6) 37... Rb3 38. Qxb3 (38. Qc2 Rcb8 39. Bxe4 Qxe4 (39... dxe4 40. Qxc4 Ne5 41. Rd5 $11) 40. Qxe4 dxe4 41. Rxc4) 38... Bxb3 39. Bh3 {[#]} Qf6 40. Bxc8 Ne5 {And now ...Nf3+ would win.} 41. Re2 Nf3+ 42. Kf1 {[%cal Oc8b7]} Bc4 {Black is clearly winning.} 43. Rxc4 dxc4 44. Bb7 Qd6 45. Bd5 Qb4 {...c3 is the strong threat.} 46. Nxh5 c3 {Threatens to win with ...Qb5.} 47. b3 Qb5 {Weighted Error Value: White=0.81/Black=0.49.  Loses game:     	White=1     	---        Missed win:     	---       	Black=1      Mistake:       	White=6     	Black=2      Inaccurate:     	White=5     	Black=1      OK:         	White=6     	Black=11     Best:        	White=1     	Black=2      Brilliant:      	---       	Black=1} 0-1

[Event "45th FIDE Womens Olympiad 2024"]
[Site "Budapest"]
[Date "2024.09.15"]
[Round "5.43"]
[White "Guichard, Pauline"]
[Black "Karimi, Setayesh"]
[Result "1/2-1/2"]
[ECO "D85"]
[WhiteElo "2374"]
[BlackElo "2105"]
[Annotator "TA"]
[PlyCount "94"]
[EventDate "2024.09.05"]
[EventType "team-tourn"]
[EventCountry "HUN"]
[SourceTitle "playchess.com"]
[Source "ChessBase"]
[SourceQuality "1"]
[WhiteTeam "France"]
[BlackTeam "Iran"]
[WhiteTeamCountry "FRA"]
[BlackTeamCountry "IRI"]
[TimeControl "40/5400+30:1800+30"]

{[%evp 13,94,22,22,0,35,2,0,7,0,9,5,0,17,22,26,30,60,46,49,33,66,19,28,0,22,20,23,10,9,25,21,18,75,77,91,19,141,117,114,117,120,9,7,25,24,12,12,12,64,56,122,123,123,122,353,353,350,327,343,307,914,868,987,808,980,0,0,0,0,0,0,0,0,0,0,0,0,0,0,0,0,0,0]} 1. d4 Nf6 2. c4 g6 3. Nc3 d5 4. cxd5 Nxd5 5. Bd2 Bg7 6. e4 Nb6 7. Be3 O-O 8. a4 a5 9. h3 Nc6 10. Nf3 f5 11. exf5 Bxf5 12. Be2 Nb4 13. Rc1 {Prevents Nc2+.} c6 14. O-O Qd6 15. Qd2 Rad8 16. Rfd1 Rfe8 17. Bf4 (17. Bg5 $14) 17... e5 $1 $11 18. Nxe5 Bxe5 (18... Qf8 $5 19. Nf3 Rd7 $14) 19. dxe5 Qxd2 20. Rxd2 Rxd2 21. Bxd2 Rxe5 22. Be3 N6d5 (22... N4d5 $1 $11) 23. Bc4 $16 Nd3 24. Bd4 ({Reject} 24. Nxd5 $6 Nxc1 25. f4 (25. Ne7+ $2 Kf8 $17) 25... cxd5 $11 (25... Rxd5 26. Bxc1 Be6 27. Bxd5 $11)) ({White should play} 24. Rb1 $16) 24... Re7 (24... Nxc1 $11 {keeps the balance.} 25. Bxe5 Bd3 26. Bxd5+ cxd5) 25. Nxd5 cxd5 26. Bxd5+ {This pair of bishops is nice.} Kf8 27. Rc3 (27. Rc4 $16) 27... Rd7 $1 $11 28. Bc5+ $1 (28. Rc8+ Ke7 29. Bc5+ Nxc5 30. Rxc5 b6 $19) 28... Nxc5 $1 29. Rxc5 {[%mdl 4096] Endgame. KRB-KRB} b6 30. Rc8+ Ke7 (30... Kg7 $11 31. Rg8+ Kf6) 31. Bf3 $1 $14 Rd1+ 32. Bxd1 $16 Bxc8 {KB-KB} 33. Bc2 Kd6 $2 (33... Bd7 $16) 34. f4 $18 Kd5 35. Kf2 Kd4 36. g4 {[#] Kg3 would now be deadly.} Be6 $2 (36... Kd5 37. Kg3 Ke6) 37. Kg3 Bf7 38. Kh4 Ke3 39. f5 $2 (39. Kg5 $18 Kd2 40. Be4) 39... Kf4 $11 {[%csl Gf4][%cal Rg6g5] [#] The position is equal.} 40. fxg6 hxg6 {[%csl Gf4][%cal Rg6g5]} 41. g5 Be8 42. Bb1 Bf7 43. Bd3 Be8 44. Bb1 Bf7 45. Bc2 Be8 46. Bb3 Bd7 47. Bc2 Be8 {Black defended with fortune.   Weighted Error Value: White=0.30/Black=0.24 (precise) .  Loses game:     	---       	Black=1      Mistake:       	White=3     	Black=5      Inaccurate:     	White=2     	Black=2      OK:         	White=10    	Black=13     Best:        	White=6     	Black=2      Strong:       	White=2     	Black=3} 1/2-1/2

[Event "45th FIDE Womens Olympiad 2024"]
[Site "Budapest"]
[Date "2024.09.15"]
[Round "5.43"]
[White "Yeshey, Lhaden"]
[Black "Redzuan, Nur Ainul Mardhiah"]
[Result "0-1"]
[ECO "D00"]
[WhiteElo "1514"]
[BlackElo "1481"]
[PlyCount "106"]
[EventDate "2024.09.05"]
[EventType "team-tourn"]
[EventCountry "HUN"]
[WhiteTeam "Bhutan"]
[BlackTeam "Brunei Darussalam"]
[WhiteTeamCountry "BTN"]
[TimeControl "40/5400+30:1800+30"]

1. d4 d5 2. Bf4 Nf6 3. e3 c5 4. Bb5+ Nc6 5. dxc5 e6 6. Bxc6+ bxc6 7. b4 a5 8. c3 g6 9. Nf3 Bg7 10. Ne5 Bb7 11. O-O O-O 12. Nd2 Nd7 13. Ndf3 f6 14. Nxd7 Qxd7 15. Bd6 Rfe8 16. Re1 e5 17. e4 Qe6 18. exd5 Qxd5 19. Qc2 f5 20. Rad1 Qe6 21. Nxe5 Bxe5 22. Rxe5 Qc4 23. Rde1 Rxe5 24. Rxe5 axb4 25. h3 Rxa2 26. Re8+ Kg7 27. Re7+ Kf6 28. Qc1 Ba6 29. Qe3 Re2 30. Qh6 Rxe7 31. Bxe7+ Kxe7 32. Qxh7+ Kf6 33. Qh8+ Kg5 34. Qd8+ Kf4 35. Qd6+ Kg5 36. f4+ Qxf4 37. Qxf4+ Kxf4 38. cxb4 Ke4 39. Kf2 Kd4 40. Kf3 Kc4 41. Kf4 Kxb4 42. Kg5 Kxc5 43. Kxg6 Bf1 44. Kxf5 Bxg2 45. h4 Bf3 46. Kf4 Bd1 47. Ke3 Bh5 48. Kd3 Kb4 49. Kd4 c5+ 50. Kd5 c4 51. Kd4 Kb3 52. Ke3 c3 53. Kd3 Kb2 {0-} 0-1

[Event "45th FIDE Womens Olympiad 2024"]
[Site "Budapest"]
[Date "2024.09.15"]
[Round "5.44"]
[White "Hamedi Nia, Vesal"]
[Black "Benmesbah, Natacha"]
[Result "0-1"]
[ECO "D03"]
[WhiteElo "1986"]
[BlackElo "2258"]
[Annotator "TA"]
[PlyCount "104"]
[EventDate "2024.09.05"]
[EventType "team-tourn"]
[EventCountry "HUN"]
[SourceTitle "playchess.com"]
[Source "ChessBase"]
[SourceQuality "1"]
[WhiteTeam "Iran"]
[BlackTeam "France"]
[WhiteTeamCountry "IRI"]
[BlackTeamCountry "FRA"]
[TimeControl "40/5400+30:1800+30"]

{[%evp 9,104,18,25,-4,0,-8,0,0,7,1,0,1,39,31,59,-18,-22,-19,-17,-63,-47,-62,-56,-77,-41,-29,-32,-62,-70,-137,-127,-182,-200,-250,-247,-285,-291,-301,-293,-340,-306,-334,-308,-314,-305,-341,-344,-393,-387,-375,-309,-530,-444,-467,-393,-515,-511,-457,-362,-367,-362,-437,-421,-479,-489,-436,-352,-431,-375,-528,-511,-1236,-724,-720,-440,-658,-689,-747,-733,-783,-781,-811,-797,-910,-914,-901,-905,-857,-843,-1606,-939,-29989,-29983,-29983,-29984,-29988,-1964]} 1. d4 Nf6 2. Nf3 g6 3. Bg5 Bg7 4. Nbd2 d5 5. e3 O-O {[%cal Oc7c5]} 6. a4 {[#]} c5 $1 7. c3 cxd4 8. exd4 {The position is equal.} Nc6 9. Bd3 Nh5 10. O-O Qc7 11. Re1 Kh8 12. Nf1 (12. Rc1 $14) 12... f6 $1 $11 13. Bh4 e5 14. Be2 (14. dxe5 $11 fxe5 15. Ne3) 14... e4 15. N3d2 Nf4 16. Bg3 g5 {Black has more active pieces.} 17. Ne3 {Threatens to win with Nxd5.} Qf7 18. Bb5 f5 19. Qb3 {Black continues to play with concentration.} ({Better is} 19. f3 $15) 19... Be6 $17 20. Nc2 (20. f3 $17) 20... Nd3 $19 21. Bd6 Rfd8 {[%cal Od3e1]} ({Don't take} 21... Na5 22. Qa3 Nxe1 23. Rxe1) 22. Ba3 Nxe1 23. Rxe1 f4 24. Bf1 Rg8 25. Qb5 Bf6 26. Nb3 Rae8 27. Nc5 Bc8 28. Qb3 Rg7 29. Qa2 b6 30. Nb3 (30. Bb5 bxc5 31. Bxc6) 30... Bf5 31. Bb5 Rc8 32. Nb4 Nxb4 33. Bxb4 Bd7 34. Ba6 Rd8 {...g4 would now be deadly.} 35. a5 b5 36. Nc5 Bc6 {Dodges Nb7} 37. b3 f3 {Prevents Qe2.} 38. gxf3 exf3 {Hoping for ...Qh5.} 39. Qc2 (39. Qb1 $142 Re8 40. Rxe8+ Qxe8 41. Qd1) 39... Re8 40. Rf1 (40. Rxe8+ $142 Qxe8 41. Qd1) 40... Bd8 41. Bc8 Bxa5 42. Bxa5 (42. Qf5 $142 Qxf5 43. Bxf5 Bxb4 44. cxb4) 42... Rxc8 43. Kh1 Re8 {Prevents Re1} 44. Nd3 Qf5 {...Re4 is the strong threat.} 45. Qd1 Re2 {[%cal Ob5b4]} 46. Rg1 g4 {[%cal Og4g3] ( -> ...g3!)} 47. Rg3 Be8 48. Bd8 Bg6 49. Ne5 Qe4 50. Rg1 {[#]} g3 $1 {Black mates.} 51. hxg3 Rxf2 52. Rf1 Qe2 {Weighted Error Value: White=0.57/Black=0.31.  Mistake:       	White=7     	---        Inaccurate:     	White=2     	Black=4      OK:         	White=7     	Black=18     Best:        	White=3     	---        Strong:       	---       	Black=1} (52... Rxf1+ $142 53. Qxf1 f2+ 54. Kh2 Qe1 55. Nxg6+ Rxg6 56. Kg2 Rxg3+ (56... Qxc3 $2 57. Qxf2 Kg7 58. Be7 $19) 57. Kxg3 Qxf1 58. Bf6+ Kg8 59. Bh4 Qe2 (59... Qg1+ {gets mated.} 60. Kf4 f1=Q+ 61. Ke5 Qg6 62. Bf2 Qh1 63. Kf4 Qhe4#) 60. Kf4 f1=Q+ (60... f1=R+ {leads to mate.} 61. Bf2 Rxf2+ 62. Kg5 Qe3+ 63. Kg4 Qf4+ 64. Kh5 Rh2#) 61. Bf2 Qfxf2+ (61... Qexf2+ $2 62. Ke5 Qf6+ 63. Kxd5 Q1f5#) 62. Kg5 Qe7+ 63. Kh6 Qfh4#) 0-1

[Event "45th FIDE Womens Olympiad 2024"]
[Site "Budapest"]
[Date "2024.09.15"]
[Round "5.45"]
[White "Cori T., Deysi"]
[Black "Yao, Lan"]
[Result "1/2-1/2"]
[ECO "A14"]
[WhiteElo "2366"]
[BlackElo "2353"]
[Annotator "TA"]
[PlyCount "99"]
[EventDate "2024.09.05"]
[EventType "team-tourn"]
[EventCountry "HUN"]
[SourceTitle "playchess.com"]
[Source "ChessBase"]
[SourceQuality "1"]
[WhiteTeam "Peru"]
[BlackTeam "England"]
[WhiteTeamCountry "PER"]
[BlackTeamCountry "ENG"]
[TimeControl "40/5400+30:1800+30"]

{[%evp 25,99,-54,-48,-47,-35,-33,0,-25,0,0,0,-29,-22,-34,-29,-36,-39,-37,0,-7,-5,-25,0,0,0,0,0,-51,-54,-75,-66,-57,0,16,15,0,0,-33,-39,-52,0,-31,0,0,0,0,0,0,0,0,0,-71,-37,-102,60,60,61,62,63,64,77,67,65,65,71,54,61,0,0,0,57,0,0,0,61,0]} 1. Nf3 d5 2. g3 Nf6 3. Bg2 e6 4. O-O Be7 5. c4 O-O 6. b3 d4 7. e3 c5 {A14: English Opening: 1...e6 with b3 by White.} 8. exd4 {8.Ne5 is the hot move.} cxd4 9. d3 Nc6 10. Na3 Re8 11. Nc2 e5 12. a3 a5 13. h3 $146 ({Predecessor:} 13. Re1 Nd7 14. Rb1 Rb8 15. b4 axb4 16. axb4 b5 17. c5 Bf8 18. Ng5 h6 19. Nxf7 {1-0 Barria Zuniga,D (2341)-Svane,R (2637) Titled Tuesday intern op 07th Dec blitz 2021 (2)}) 13... h6 14. Re1 Bf8 15. g4 Qd6 16. Nd2 Be6 17. Rb1 Rab8 18. Qf3 Ne7 19. Qg3 Ng6 20. Ne4 Nxe4 21. Bxe4 Bd7 (21... b5 $5 22. Bd2 Nf4 23. Bxf4 exf4 $11) 22. b4 b6 23. Re2 Be7 24. Ne1 $1 axb4 25. axb4 Bh4 26. Qh2 (26. Qf3 $11) 26... Bc6 $15 27. Qg2 Bxe4 28. Qxe4 Re6 (28... Bg5 $15 29. Bxg5 hxg5) 29. Nf3 $11 Qe7 30. Bd2 Re8 31. Qf5 Qb7 32. Qe4 Qe7 (32... Qxe4 $15 33. Rxe4 Ra8) 33. Qf5 Bf6 34. Ra1 Qc7 35. Ree1 e4 36. Rxe4 Rxe4 37. dxe4 Qxc4 38. g5 (38. Rc1 $11 {remains equal.} Qe2 39. Bxh6) 38... hxg5 (38... Bxg5 {with more complications.} 39. Rc1 Qb3 40. Bxg5 hxg5 41. Rc7 d3) 39. Bxg5 (39. Rc1 $1 $15 Qa2 40. Rc6) 39... Qd3 $2 (39... Qxb4 $6 40. Bxf6 gxf6 41. Qxf6 $11) (39... Bxg5 $17 40. Nxg5 Rd8 (40... Qxb4 41. Qxf7+ Kh8 42. Qxg6 Kg8 43. Qf7+ Kh8 44. Qxe8+)) 40. Bxf6 $14 gxf6 41. Qxf6 Qxe4 42. Re1 $1 ({Of course not} 42. Nxd4 Nf4 43. Qg5+ Kh7 44. Qh4+ Kg7 45. Qg4+ Kh8 46. Qh4+ Kg8 47. Qg4+ Kh8 48. Qh4+ Kg8 49. Qg4+ Kh8 $11) 42... Qa8 43. Rxe8+ (43. Qxb6 Rxe1+ 44. Nxe1 Qa1 $11) 43... Qxe8 44. Qxd4 ({Much worse is} 44. Nxd4 Qe1+ 45. Kh2 Qxb4 $11) 44... Qc6 45. Qe3 Qd5 46. Qe8+ ({White should try} 46. Ne1 $14) 46... Kg7 $11 47. Qe3 (47. Qe2 $11) 47... Kg8 $14 48. Qe8+ (48. Ne1 $14) 48... Kg7 $11 49. Qe3 (49. Qe2 $11) 49... Kg8 $1 $14 50. Qe8+ ({Better is} 50. Ne1 $14) 1/2-1/2

[Event "45th FIDE Womens Olympiad 2024"]
[Site "Budapest"]
[Date "2024.09.15"]
[Round "5.46"]
[White "Houska, Jovanka"]
[Black "Aliaga Fernandez, Ingrid Y"]
[Result "1-0"]
[ECO "D27"]
[WhiteElo "2333"]
[BlackElo "2111"]
[Annotator "TA"]
[PlyCount "93"]
[EventDate "2024.09.05"]
[EventType "team-tourn"]
[EventCountry "HUN"]
[SourceTitle "playchess.com"]
[Source "ChessBase"]
[SourceQuality "1"]
[WhiteTeam "England"]
[BlackTeam "Peru"]
[WhiteTeamCountry "ENG"]
[BlackTeamCountry "PER"]
[TimeControl "40/5400+30:1800+30"]

{[%evp 12,93,27,23,34,32,43,26,35,38,35,47,50,22,29,21,22,20,27,0,0,0,7,0,0,0,0,0,19,6,8,0,7,0,19,18,31,42,39,21,38,41,78,69,137,128,122,104,112,71,166,164,167,134,354,353,389,394,575,579,600,595,596,477,600,582,598,598,595,586,781,760,735,728,1410,1389,1478,1370,1435,856,1087,1082,1143,1143]} 1. d4 d5 2. c4 dxc4 3. Nf3 Nf6 4. e3 e6 5. Bxc4 c5 6. O-O a6 7. Nbd2 Nc6 8. dxc5 Bxc5 9. a3 O-O {White has an edge.} 10. b4 Bd6 11. Bb2 b5 12. Be2 Bb7 13. Qb1 Qe7 14. Rd1 Rfd8 15. Nf1 Rac8 16. Ng3 Bb8 17. Rxd8+ Rxd8 18. Qc2 h6 19. Rc1 Na7 20. Ne5 Rc8 21. Qb1 Rxc1+ 22. Qxc1 Qc7 {[#] aiming for ...Qxc1+.} 23. Qa1 Ne8 24. Bh5 g6 25. Bd1 {[%cal Bh5d1,Bd1f3,Bf3b7][%mdl 32]} (25. Be2 {with more complications.} Qc2 26. Bd1 Qd2 27. Bd4) 25... Nc6 26. Nd3 Qe7 27. Nc5 e5 (27... Na5 $14) 28. Nxb7 Qxb7 29. Bf3 Qc7 30. Ne4 {Wards off Nf6. White is more active.} Ba7 (30... f5 $16 {was necessary.}) 31. Qc1 $18 Kf8 32. Nc5 Ne7 $2 {[#] This move loses the game for Black.} (32... Nb8 $16 {was called for.} 33. h3 Ke7) 33. Bxe5 $1 {[%mdl 512]} Qc8 (33... Qd8 34. Nxa6) 34. Bb7 {Black is weak on the dark squares} Qf5 (34... Qd8 $142 35. h3 (35. Bxa6 Bxc5 36. bxc5 Qd5 $18) (35. Nxa6 Nd6 $18) 35... a5) 35. e4 {White is clearly winning.} Qh5 36. Nd7+ Kg8 37. Nf6+ Nxf6 38. Bxf6 Qe2 39. Bxe7 {[%cal Oe7c5] And now Bc5! would win. This pair of bishops is nice.} Bxf2+ 40. Kh1 Be1 {[%cal Re2f1]} 41. Bc5 (41. Bxa6 $2 Qf1#) 41... Bd2 42. Qb1 h5 {[%cal Bh6h5,Bh5h4][%mdl 32]} 43. Bxa6 h4 44. h3 g5 45. Bc8 Bf4 46. Bg4 Qd2 47. Qd1 {Weighted Error Value: White=0.08 (flawless) /Black=0.28 (precise) .  Loses game:     	---       	Black=1      Mistake:       	---       	Black=3      Inaccurate:     	White=2     	Black=2      OK:         	White=12    	Black=10     Best:        	White=2     	Black=2      Brilliant:      	White=1     	---} 1-0

[Event "45th FIDE Womens Olympiad 2024"]
[Site "Budapest"]
[Date "2024.09.15"]
[Round "5.47"]
[White "Contreras Huaman, Fiorella"]
[Black "Toma, Katarzyna"]
[Result "1-0"]
[ECO "B23"]
[WhiteElo "2168"]
[BlackElo "2184"]
[Annotator "TA"]
[PlyCount "81"]
[EventDate "2024.09.05"]
[EventType "team-tourn"]
[EventCountry "HUN"]
[SourceTitle "playchess.com"]
[Source "ChessBase"]
[SourceQuality "1"]
[WhiteTeam "Peru"]
[BlackTeam "England"]
[WhiteTeamCountry "PER"]
[BlackTeamCountry "ENG"]
[TimeControl "40/5400+30:1800+30"]

{[%evp 10,81,18,0,6,19,9,0,11,-8,-8,-10,-15,-9,13,20,30,8,16,5,25,13,14,0,-2,-29,0,0,6,16,21,0,0,0,0,0,26,0,57,47,52,51,96,115,95,60,45,38,35,37,36,-9,20,23,23,12,86,4,4,13,71,76,106,109,109,109,163,141,149,137,882,860,989,986]} 1. e4 c5 2. Nc3 a6 3. g3 b5 4. Bg2 Bb7 5. d3 e6 6. Nh3 Be7 7. O-O Nc6 8. f4 Qc7 {The position is equal.} 9. e5 f5 10. exf6 Nxf6 11. Ne4 O-O 12. c3 Rae8 13. Be3 Nd8 14. Nhg5 Nxe4 15. Nxe4 Nf7 16. d4 c4 17. Qh5 g6 18. Qh3 Bd5 19. Rae1 Qc6 20. Bd2 a5 21. g4 Nd6 22. Nc5 Nc8 23. Ne4 Nb6 (23... Nd6 $11 24. Nc5 Nf7) 24. f5 (24. Re2 {looks sharper.} b4 25. f5 gxf5 26. gxf5 exf5 27. Ng3) 24... exf5 25. gxf5 Rxf5 26. Rxf5 gxf5 27. Qxf5 {[%cal Oe4g5] [#] And now Ng5! would win.} Rf8 $1 28. Qg4+ Qg6 29. Qxg6+ hxg6 30. Nc5 Bh4 {[#] Strongly threatening ...Bf2+.} 31. Bxd5+ Nxd5 32. Re4 d6 (32... Rf2 $1 $11 33. Bg5 (33. Rxh4 $2 Rxd2 34. Rg4 Rxb2 $19) 33... Rxb2 34. Bxh4 (34. Rxh4 Rxa2 35. Rh6 Nxc3 $11) 34... d6) 33. Nb7 (33. Rxh4 $16 dxc5 34. dxc5) 33... Be7 $1 $11 ({Reject} 33... Rf2 34. Be1 (34. Rxh4 $2 {is the wrong capture.} Rxd2 35. Rg4 Rxb2 $19) 34... Rxb2 35. Bxh4 $16 (35. Rxh4 b4 $11)) 34. Nxa5 Ra8 (34... Rc8 $1 $11) 35. Nc6 $16 Bf8 36. a3 Rc8 37. Nb4 Nf6 (37... Nxb4 $16 38. axb4 Kf7) 38. Re2 $18 Kf7 39. Bg5 {Hoping for Rf2.} d5 $2 {[%mdl 8192]} (39... Bg7 $16 40. Kf1 Re8) 40. Rf2 {[%csl LRd5,LRf6]} Bxb4 41. Rxf6+ {Weighted Error Value: White=0.12 (very precise) /Black=0.18 (very precise) .  Loses game:     	---       	Black=1      Mistake:       	White=1     	Black=4      Inaccurate:     	White=4     	Black=5      OK:         	White=14    	Black=6      Best:        	White=2     	Black=1      Strong:       	---       	Black=2} ({Not} 41. cxb4 Rc6 $11) 1-0